fUST/lending_fUST_20240925
["ID","MTS","AMOUNT","RATE_DAILY","PERIOD"]
[339103017,1727247054298,-443.7018,0.00016712,2]
[339103018,1727247054308,-443.7018,0.00016712,2]
[339103019,1727247054318,-268.64208,0.00016712,2]
[339103020,1727247054328,-443.7018,0.00016712,2]
[339103021,1727247054339,-443.7018,0.00016712,2]
[339103022,1727247054348,-300.956575,0.00016712,2]
[339103023,1727247054406,-300.956575,0.00016712,2]
[339103024,1727247054415,-300.956575,0.00016712,2]
[339103025,1727247054425,-300.956575,0.00016712,2]
[339103026,1727247054435,-151.0,0.00016712,2]
[339103027,1727247054445,-151.0,0.00016712,2]
[339103028,1727247054455,-151.0,0.00016712,2]
[339103029,1727247054465,-151.0,0.00016712,2]
[339103030,1727247054475,-251.278125,0.00016712,2]
[339103031,1727247054484,-251.278125,0.00016712,2]
[339103032,1727247054494,-251.278125,0.00016712,2]
[339103033,1727247054503,-251.278125,0.00016712,2]
[339103034,1727247054513,-251.278125,0.00016712,2]
[339103035,1727247054522,-251.278125,0.00016712,2]
[339103036,1727247054532,-218.848757,0.00016712,2]
[339103037,1727247054541,-218.848757,0.00016712,2]
[339103038,1727247054551,-218.848757,0.00016712,2]
[339103039,1727247054560,-218.848757,0.00016712,2]
[339103040,1727247054570,-218.848757,0.00016712,2]
[339103041,1727247054580,-218.848757,0.00016712,2]
[339103042,1727247054593,-500.0,0.00016712,2]
[339103043,1727247054603,-151.0,0.00016712,2]
[339103044,1727247054612,-151.0,0.00016712,2]
[339103045,1727247054622,-151.0,0.00016712,2]
[339103046,1727247054631,-151.0,0.00016712,2]
[339103047,1727247054641,-151.0,0.00016712,2]
[339103048,1727247054650,-151.0,0.00016712,2]
[339103049,1727247054659,-151.0,0.00016712,2]
[339103050,1727247054669,-151.0,0.00016712,2]
[339103051,1727247054687,-151.0,0.00016712,2]
[339103052,1727247054696,-151.0,0.00016712,2]
[339103053,1727247054705,-151.0,0.00016712,2]
[339103054,1727247054714,-151.0,0.00016712,2]
[339103055,1727247054724,-499.07383664,0.00016712,2]
[339103056,1727247054733,-500.0,0.00016712,2]
[339103057,1727247054743,-500.0,0.00016712,2]
[339103058,1727247054753,-240.28932179,0.00016712,2]
[339103059,1727247054762,-504.48763738,0.00016712,2]
[339103060,1727247054771,-151.0,0.00016712,2]
[339103061,1727247054781,-151.0,0.00016712,2]
[339103062,1727247054790,-151.0,0.00016712,2]
[339103063,1727247054799,-500.0,0.00016712,2]
[339103064,1727247054809,-536.791048,0.00016712,2]
[339103065,1727247054818,-536.791048,0.00016712,2]
[339103066,1727247054828,-536.791048,0.00016712,2]
[339103067,1727247054837,-151.0,0.00016712,2]
[339103068,1727247054847,-152.762845,0.00016712,2]
[339103069,1727247054856,-500.0,0.00016712,2]
[339103070,1727247054865,-266.158118,0.00016712,2]
[339103071,1727247054874,-266.158118,0.00016712,2]
[339103072,1727247054883,-536.791048,0.00016712,2]
[339103073,1727247054892,-266.158118,0.00016712,2]
[339103074,1727247054901,-536.791048,0.00016712,2]
[339103075,1727247054911,-536.791048,0.00016712,2]
[339103076,1727247054920,-266.158118,0.00016712,2]
[339103077,1727247054932,-266.158118,0.00016712,2]
[339103078,1727247054942,-266.158118,0.00016712,2]
[339103079,1727247054951,-500.0,0.00016712,2]
[339103080,1727247054961,-500.0,0.00016712,2]
[339103081,1727247054971,-508.2,0.00016712,2]
[339103082,1727247054981,-500.0,0.00016712,2]
[339103083,1727247054990,-500.0,0.00016712,2]
[339103084,1727247054999,-171.765194,0.00016712,2]
[339103085,1727247055008,-171.765194,0.00016712,2]
[339103086,1727247055018,-516.19653735,0.00016712,2]
[339103087,1727247055027,-171.765194,0.00016712,2]
[339103088,1727247055036,-151.0,0.00016712,2]
[339103089,1727247055047,-151.0,0.00016712,2]
[339103090,1727247055056,-503.8260819,0.00016712,2]
[339103091,1727247055065,-151.0,0.00016712,2]
[339103092,1727247055076,-171.765194,0.00016712,2]
[339103093,1727247055085,-500.0,0.00016712,2]
[339103094,1727247055095,-171.765194,0.00016712,2]
[339103095,1727247055104,-500.0,0.00016712,2]
[339103096,1727247055113,-171.765194,0.00016712,2]
[339103097,1727247055123,-500.0,0.00016712,2]
[339103098,1727247055132,-500.0,0.00016712,2]
[339103099,1727247055141,-500.0,0.00016712,2]
[339103100,1727247055151,-523.08,0.00016712,2]
[339103101,1727247055161,-500.0,0.00016712,2]
[339103102,1727247055171,-554.17584132,0.00016712,2]
[339103103,1727247055183,-507.87690982,0.00016712,2]
[339103104,1727247055193,-213.294328,0.00016712,2]
[339103105,1727247055202,-213.294328,0.00016712,2]
[339103106,1727247055211,-213.294328,0.00016712,2]
[339103107,1727247055221,-213.294328,0.00016712,2]
[339103108,1727247055230,-213.294328,0.00016712,2]
[339103109,1727247055239,-213.294328,0.00016712,2]
[339103110,1727247055248,-500.0,0.00016712,2]
[339103111,1727247055259,-500.0,0.00016712,2]
[339103112,1727247055269,-500.0,0.00016712,2]
[339103113,1727247055278,-588.59168497,0.00016712,2]
[339103114,1727247055287,-500.0,0.00016712,2]
[339103115,1727247055297,-347.73930454,0.00016712,2]
[339103116,1727247055307,-151.0,0.00016712,2]
[339103117,1727247055316,-151.0,0.00016712,2]
[339103118,1727247055325,-151.0,0.00016712,2]
[339103119,1727247055335,-151.0,0.00016712,2]
[339103120,1727247055344,-151.0,0.00016712,2]
[339103121,1727247055353,-151.0,0.00016712,2]
[339103122,1727247055362,-500.0,0.00016712,2]
[339103123,1727247055371,-500.0,0.00016712,2]
[339103124,1727247055381,-484.39814213,0.00016712,2]
[339103125,1727247055391,-500.0,0.00016712,5]
[339103126,1727247055400,-501.64807723,0.00016712,2]
[339103127,1727247055410,-646.51152998,0.00016712,2]
[339103128,1727247055419,-500.0,0.00016712,2]
[339103129,1727247055429,-500.0,0.00016712,2]
[339103130,1727247055438,-500.0,0.00016712,2]
[339103131,1727247055448,-411.97524175,0.00016712,2]
[339103132,1727247055457,-626.31,0.00016712,2]
[339103133,1727247055466,-251.79440914,0.00016712,2]
[339103134,1727247055475,-151.0,0.00016712,2]
[339103135,1727247055485,-151.0,0.00016712,2]
[339103136,1727247055495,-155.533689,0.00016712,2]
[339103137,1727247055504,-500.0,0.00016712,2]
[339103138,1727247055514,-283.75725302,0.00016712,2]
[339103139,1727247055523,-500.0,0.00016712,2]
[339103140,1727247055532,-500.0,0.00016712,2]
[339103141,1727247055542,-500.0,0.00016712,2]
[339103142,1727247055553,-500.0,0.00016712,2]
[339103143,1727247055563,-500.0,0.00016712,2]
[339103144,1727247055573,-500.0,0.00016712,2]
[339103145,1727247055582,-509.02146782,0.00016712,2]
[339103146,1727247055591,-500.0,0.00016712,2]
[339103147,1727247055601,-500.0,0.00016712,2]
[339103148,1727247055611,-500.0,0.00016712,2]
[339103149,1727247055621,-508.53290594,0.00016712,2]
[339103150,1727247055630,-500.0,0.00016712,2]
[339103151,1727247055640,-500.0,0.00016712,2]
[339103152,1727247055650,-151.0,0.00016712,2]
[339103153,1727247055660,-675.04,0.00016712,2]
[339103154,1727247055670,-502.72031707,0.00016712,2]
[339103155,1727247055679,-500.0,0.00016712,2]
[339103156,1727247055689,-500.0,0.00016712,2]
[339103157,1727247055698,-500.0,0.00016712,2]
[339103158,1727247055707,-517.46914724,0.00016712,2]
[339103159,1727247055717,-387.33955106,0.00016712,2]
[339103160,1727247055726,-500.0,0.00016712,2]
[339103161,1727247055735,-500.0,0.00016712,2]
[339103162,1727247055745,-500.0,0.00016712,2]
[339103163,1727247055754,-500.0,0.00016712,2]
[339103164,1727247055764,-500.0,0.00016712,2]
[339103165,1727247055773,-255.23525499,0.00016712,2]
[339103166,1727247055782,-171.557654,0.00016712,2]
[339103167,1727247055791,-171.557654,0.00016712,2]
[339103168,1727247055801,-171.557654,0.00016712,2]
[339103169,1727247055811,-171.557654,0.00016712,2]
[339103170,1727247055820,-171.557654,0.00016712,2]
[339103171,1727247055829,-171.557654,0.00016712,2]
[339103172,1727247055838,-505.9836126,0.00016712,2]
[339103173,1727247055848,-500.0,0.00016712,2]
[339103174,1727247055857,-500.0,0.00016712,2]
[339103175,1727247055866,-512.98577498,0.00016712,2]
[339103176,1727247055876,-1803.519076,0.00016712,2]
[339103177,1727247055885,-1803.519076,0.00016712,2]
[339103178,1727247055894,-1803.519076,0.00016712,2]
[339103179,1727247055903,-500.0,0.00016712,2]
[339103180,1727247055913,-1803.519076,0.00016712,2]
[339103181,1727247055922,-1803.519076,0.00016712,2]
[339103182,1727247055932,-1803.519086,0.00016712,2]
[339103183,1727247055940,-500.0,0.00016712,2]
[339103184,1727247055950,-516.38882381,0.00016712,2]
[339103185,1727247055959,-500.0,0.00016712,2]
[339103186,1727247055967,-207.339698,0.00016712,2]
[339103187,1727247055976,-207.339698,0.00016712,2]
[339103188,1727247055985,-207.339698,0.00016712,2]
[339103189,1727247055994,-207.339698,0.00016712,2]
[339103190,1727247056003,-207.339698,0.00016712,2]
[339103191,1727247056012,-207.339698,0.00016712,2]
[339103192,1727247056021,-500.0,0.00016712,2]
[339103193,1727247056030,-500.0,0.00016712,2]
[339103194,1727247056039,-500.0,0.00016712,2]
[339103195,1727247056049,-500.0,0.00016712,2]
[339103196,1727247056058,-500.0,0.00016712,2]
[339103197,1727247056067,-162.713224,0.00016712,2]
[339103198,1727247056076,-500.0,0.00016712,2]
[339103199,1727247056085,-500.0,0.00016712,2]
[339103200,1727247056094,-500.0,0.00016712,2]
[339103201,1727247056103,-500.0,0.00016712,2]
[339103202,1727247056112,-734.98,0.00016712,2]
[339103203,1727247056121,-261.76859419,0.00016712,2]
[339103204,1727247056130,-500.0,0.00016712,2]
[339103205,1727247056139,-511.25929439,0.00016712,2]
[339103206,1727247056149,-500.0,0.00016712,2]
[339103207,1727247056158,-500.0,0.00016712,2]
[339103208,1727247056167,-500.0,0.00016712,2]
[339103209,1727247056176,-631.213083,0.00016712,2]
[339103210,1727247056186,-818.53,0.00016712,2]
[339103211,1727247056195,-500.0,0.00016712,2]
[339103212,1727247056204,-500.0,0.00016712,2]
[339103213,1727247056214,-501.74997025,0.00016712,2]
[339103214,1727247056223,-500.0,0.00016712,2]
[339103215,1727247056232,-500.0,0.00016712,2]
[339103216,1727247056241,-507.95582857,0.00016712,2]
[339103217,1727247056251,-500.0,0.00016712,2]
[339103218,1727247056265,-500.0,0.00016712,2]
[339103219,1727247056274,-500.0,0.00016712,2]
[339103220,1727247056283,-500.0,0.00016712,2]
[339103221,1727247056293,-504.69926096,0.00016712,2]
[339103222,1727247056302,-525.18,0.00016712,2]
[339103223,1727247056311,-617.33,0.00016712,2]
[339103224,1727247056321,-516.97644752,0.00016712,2]
[339103225,1727247056332,-504.64257294,0.00016712,2]
[339103226,1727247056343,-500.0,0.00016712,2]
[339103227,1727247056354,-507.49427834,0.00016712,2]
[339103228,1727247056366,-500.0,0.00016712,2]
[339103229,1727247056376,-515.79892112,0.00016712,2]
[339103230,1727247056386,-752.19,0.00016712,2]
[339103231,1727247056396,-500.0,0.00016712,2]
[339103232,1727247056405,-500.0,0.00016712,2]
[339103233,1727247056416,-500.0,0.00016712,2]
[339103234,1727247056426,-492.75859,0.00016712,2]
[339103235,1727247056435,-237.09431988,0.00016712,2]
[339103236,1727247056444,-492.758595,0.00016712,2]
[339103237,1727247056454,-2416.873656,0.00016712,2]
[339103238,1727247056463,-2416.873656,0.00016712,2]
[339103239,1727247056472,-919.53,0.00016712,2]
[339103240,1727247056482,-500.0,0.00016712,2]
[339103241,1727247056492,-500.0,0.00016712,2]
[339103242,1727247056501,-2013.06637483,0.00016712,2]
[339103243,1727247057026,-151.0,0.00016428,2]
[339103244,1727247057035,-447.0205773,0.00016438,2]
[339103245,1727247057047,-52.9794227,0.00016438,2]
[339103246,1727247057056,-151.0,0.00016438,2]
[339103247,1727247057066,-151.0,0.00016438,2]
[339103248,1727247057075,-151.0,0.00016438,2]
[339103249,1727247057085,-151.0,0.00016438,2]
[339103250,1727247057094,-151.0,0.00016438,2]
[339103251,1727247057104,-500.0,0.00016473,2]
[339103252,1727247057114,-403.80728117,0.00016712,2]
[339103253,1727247057124,-955.359923,0.00016712,2]
[339103254,1727247057138,-1461.513733,0.00016712,2]
[339103255,1727247057149,-597.41,0.00016712,2]
[339103256,1727247057161,-510.34739666,0.00016712,2]
[339103257,1727247057170,-500.0,0.00016712,2]
[339103258,1727247057182,-500.0,0.00016712,2]
[339103259,1727247057191,-500.0,0.00016712,2]
[339103260,1727247057201,-500.0,0.00016712,2]
[339103261,1727247057210,-500.0,0.00016712,2]
[339103262,1727247057221,-500.0,0.00016712,2]
[339103263,1727247057232,-415.43,0.00016712,2]
[339103264,1727247057243,-500.0,0.00016712,2]
[339103265,1727247057254,-500.0,0.00016712,2]
[339103266,1727247057266,-515.56,0.00016712,2]
[339103267,1727247057277,-996.65,0.00016712,2]
[339103268,1727247057287,-500.0,0.00016712,2]
[339103269,1727247057298,-500.0,0.00016712,2]
[339103270,1727247057310,-500.0,0.00016712,2]
[339103271,1727247057320,-511.05424073,0.00016712,2]
[339103272,1727247057331,-500.0,0.00016712,2]
[339103273,1727247057342,-151.0,0.00016712,2]
[339103274,1727247057351,-5215.39,0.00016712,2]
[339103275,1727247057362,-453.888966,0.00016712,2]
[339103276,1727247057372,-500.0,0.00016712,2]
[339103277,1727247057381,-1008.93,0.00016712,2]
[339103278,1727247057391,-453.888973,0.00016712,2]
[339103279,1727247057401,-1333.961249,0.00016712,2]
[339103280,1727247057411,-502.52557784,0.00016712,2]
[339103281,1727247057420,-536.22,0.00016712,2]
[339103282,1727247057431,-1333.961253,0.00016712,2]
[339103283,1727247057441,-500.0,0.00016712,2]
[339103284,1727247057450,-500.0,0.00016712,2]
[339103285,1727247057460,-500.0,0.00016712,2]
[339103286,1727247057469,-500.0,0.00016712,2]
[339103287,1727247057478,-500.0,0.00016712,2]
[339103288,1727247057488,-500.0,0.00016712,2]
[339103289,1727247057498,-500.0,0.00016712,2]
[339103290,1727247057507,-500.0,0.00016712,2]
[339103291,1727247057517,-500.0,0.00016712,2]
[339103292,1727247057527,-353.957048,0.00016712,2]
[339103293,1727247057537,-353.957058,0.00016712,2]
[339103294,1727247057547,-500.0,0.00016712,2]
[339103295,1727247057557,-1757.91,0.00016712,2]
[339103296,1727247057567,-447.5637357,0.00016712,2]
[339103297,1727247057576,-2030.925849,0.00016712,2]
[339103298,1727247057587,-723.995113,0.00016712,2]
[339103299,1727247057596,-370.89419129,0.00016712,2]
[339103300,1727247057606,-723.995113,0.00016712,2]
[339103301,1727247057615,-500.0,0.00016712,2]
[339103302,1727247057625,-2030.92584661,0.00016712,2]
[339103303,1727247057635,-500.0,0.00016712,2]
[339103304,1727247057644,-723.995113,0.00016712,2]
[339103305,1727247057654,-1068.67,0.00016712,2]
[339103306,1727247057663,-723.995105,0.00016712,2]
[339103307,1727247057673,-500.0,0.00016712,2]
[339103308,1727247057683,-504.12439814,0.00016712,2]
[339103309,1727247057692,-825.31,0.00016712,2]
[339103310,1727247057702,-500.0,0.00016712,2]
[339103311,1727247057712,-500.0,0.00016712,2]
[339103312,1727247057721,-500.0,0.00016712,2]
[339103313,1727247057730,-991.48,0.00016712,2]
[339103314,1727247057740,-1100.18,0.00016712,2]
[339103315,1727247057750,-593.72,0.00016712,2]
[339103316,1727247057760,-175.455661,0.00016712,2]
[339103317,1727247057769,-175.455653,0.00016712,2]
[339103318,1727247057779,-500.0,0.00016712,2]
[339103319,1727247057788,-500.0,0.00016712,2]
[339103320,1727247057798,-500.0,0.00016712,2]
[339103321,1727247057807,-500.0,0.00016712,2]
[339103322,1727247057817,-500.0,0.00016712,2]
[339103323,1727247057827,-500.0,0.00016712,2]
[339103324,1727247057837,-500.0,0.00016712,2]
[339103325,1727247057847,-500.0,0.00016712,2]
[339103326,1727247057856,-500.0,0.00016712,2]
[339103327,1727247057865,-500.0,0.00016712,2]
[339103328,1727247057875,-500.0,0.00016712,2]
[339103329,1727247057884,-776.77,0.00016712,2]
[339103330,1727247057894,-500.0,0.00016712,2]
[339103331,1727247057904,-500.0,0.00016712,2]
[339103332,1727247057913,-500.0,0.00016712,2]
[339103333,1727247057924,-558.84,0.00016712,2]
[339103334,1727247057933,-500.0,0.00016712,2]
[339103335,1727247057943,-500.0,0.00016712,2]
[339103336,1727247057953,-724.18,0.00016712,2]
[339103337,1727247057963,-500.0,0.00016712,2]
[339103338,1727247057972,-620.15540022,0.00016712,2]
[339103339,1727247057982,-500.0,0.00016712,2]
[339103340,1727247057991,-500.0,0.00016712,2]
[339103341,1727247058000,-500.0,0.00016712,2]
[339103342,1727247058010,-500.0,0.00016712,2]
[339103343,1727247058020,-500.0,0.00016712,2]
[339103344,1727247058030,-1000.0,0.00016712,2]
[339103345,1727247058040,-1025.0,0.00016712,2]
[339103346,1727247058049,-500.0,0.00016712,2]
[339103347,1727247058059,-500.0,0.00016712,2]
[339103348,1727247058068,-510.30425611,0.00016712,2]
[339103349,1727247058078,-500.0,0.00016712,2]
[339103350,1727247058089,-500.0,0.00016712,2]
[339103351,1727247058098,-416.429542,0.00016712,2]
[339103352,1727247058108,-416.429542,0.00016712,2]
[339103353,1727247058118,-500.0,0.00016712,2]
[339103354,1727247058128,-1522.59,0.00016712,2]
[339103355,1727247058139,-500.0,0.00016712,2]
[339103356,1727247058148,-442.17662661,0.00016712,2]
[339103357,1727247058158,-199.74209557,0.00016712,2]
[339103358,1727247058167,-1563.37,0.00016712,2]
[339103359,1727247058178,-416.429542,0.00016712,2]
[339103360,1727247058198,-416.429541,0.00016712,2]
[339103361,1727247058208,-500.0,0.00016712,2]
[339103362,1727247058218,-500.0,0.00016712,2]
[339103363,1727247058227,-925.71,0.00016712,2]
[339103364,1727247058241,-682.36,0.00016712,2]
[339103365,1727247058251,-500.0,0.00016712,2]
[339103366,1727247058264,-1656.27,0.00016712,2]
[339103367,1727247058275,-500.0,0.00016712,2]
[339103368,1727247058285,-699.72,0.00016712,2]
[339103369,1727247058295,-500.0,0.00016712,2]
[339103370,1727247058305,-500.0,0.00016712,2]
[339103371,1727247058315,-500.0,0.00016712,2]
[339103372,1727247058325,-500.0,0.00016712,2]
[339103373,1727247058336,-1105.36,0.00016712,2]
[339103374,1727247058345,-279.203138,0.00016712,2]
[339103375,1727247058355,-500.0,0.00016712,2]
[339103376,1727247058365,-279.203136,0.00016712,2]
[339103377,1727247058375,-500.0,0.00016712,2]
[339103378,1727247058386,-888.28,0.00016712,2]
[339103379,1727247058397,-500.0,0.00016712,2]
[339103380,1727247058407,-500.0,0.00016712,2]
[339103381,1727247058417,-500.0,0.00016712,2]
[339103382,1727247058428,-639.2,0.00016712,2]
[339103383,1727247058438,-500.0,0.00016712,2]
[339103384,1727247058448,-620.12,0.00016712,2]
[339103385,1727247058458,-257.17776565,0.00016712,2]
[339103386,1727247058468,-467.06568,0.00016712,2]
[339103387,1727247058478,-467.06568,0.00016712,2]
[339103388,1727247058488,-788.49,0.00016712,2]
[339103389,1727247058498,-500.0,0.00016712,2]
[339103390,1727247058508,-467.06568,0.00016712,2]
[339103391,1727247058518,-980.12,0.00016712,2]
[339103392,1727247058528,-500.0,0.00016712,2]
[339103393,1727247058539,-467.06569,0.00016712,2]
[339103394,1727247058550,-500.0,0.00016712,2]
[339103395,1727247058560,-500.0,0.00016712,2]
[339103396,1727247058570,-687.49,0.00016712,2]
[339103397,1727247058580,-1015.97,0.00016712,2]
[339103398,1727247058591,-500.0,0.00016712,2]
[339103399,1727247058602,-500.0,0.00016712,2]
[339103400,1727247058613,-714.5,0.00016712,2]
[339103401,1727247058624,-505.05486318,0.00016712,2]
[339103402,1727247058634,-401.302645,0.00016712,2]
[339103403,1727247058644,-500.0,0.00016712,2]
[339103404,1727247058655,-500.0,0.00016712,2]
[339103405,1727247058665,-500.0,0.00016712,2]
[339103406,1727247058675,-401.302637,0.00016712,2]
[339103407,1727247058695,-534.81,0.00016712,2]
[339103408,1727247058706,-500.0,0.00016712,2]
[339103409,1727247058717,-792.58,0.00016712,2]
[339103410,1727247058727,-636.56,0.00016712,2]
[339103411,1727247058738,-500.0,0.00016712,2]
[339103412,1727247058748,-500.0,0.00016712,2]
[339103413,1727247058758,-1613.875332,0.00016712,2]
[339103414,1727247058768,-500.0,0.00016712,2]
[339103415,1727247058778,-500.0,0.00016712,2]
[339103416,1727247058789,-1613.875332,0.00016712,2]
[339103417,1727247058799,-957.285073,0.00016712,2]
[339103418,1727247058810,-865.66,0.00016712,2]
[339103419,1727247058819,-500.0,0.00016712,2]
[339103420,1727247058829,-1613.875332,0.00016712,2]
[339103421,1727247058839,-1613.875327,0.00016712,2]
[339103422,1727247058850,-1557.93561,0.00016712,2]
[339103423,1727247058860,-979.43,0.00016712,2]
[339103424,1727247058870,-1557.93561,0.00016712,2]
[339103425,1727247058880,-500.0,0.00016712,2]
[339103426,1727247058890,-957.285074,0.00016712,2]
[339103427,1727247058901,-500.0,0.00016712,2]
[339103428,1727247058910,-1557.93561,0.00016712,2]
[339103429,1727247058921,-270.26,0.00016712,2]
[339103430,1727247058931,-558.74,0.00016712,2]
[339103431,1727247058942,-1557.93560424,0.00016712,2]
[339103432,1727247058952,-500.0,0.00016712,2]
[339103433,1727247058963,-917.4,0.00016712,2]
[339103434,1727247058972,-500.0,0.00016712,2]
[339103435,1727247058982,-500.0,0.00016712,2]
[339103436,1727247058992,-500.0,0.00016712,2]
[339103437,1727247059001,-500.0,0.00016712,2]
[339103438,1727247059012,-526.31,0.00016712,2]
[339103439,1727247059023,-1046.84,0.00016712,2]
[339103440,1727247059033,-500.0,0.00016712,2]
[339103441,1727247059045,-4230.65,0.00016712,2]
[339103442,1727247059056,-500.0,0.00016712,2]
[339103443,1727247059067,-593.69,0.00016712,2]
[339103444,1727247059077,-500.0,0.00016712,2]
[339103445,1727247059087,-500.0,0.00016712,2]
[339103446,1727247059096,-242.400023,0.00016712,2]
[339103447,1727247059106,-242.400023,0.00016712,2]
[339103448,1727247059115,-500.0,0.00016712,2]
[339103449,1727247059125,-500.0,0.00016712,2]
[339103450,1727247059135,-500.0,0.00016712,2]
[339103451,1727247059145,-500.0,0.00016712,2]
[339103452,1727247059155,-510.67197481,0.00016712,2]
[339103453,1727247059165,-242.400023,0.00016712,2]
[339103454,1727247059174,-500.0,0.00016712,2]
[339103455,1727247059188,-242.400018,0.00016712,2]
[339103456,1727247059197,-500.0,0.00016712,2]
[339103457,1727247059207,-685.3,0.00016712,2]
[339103458,1727247059217,-878.2,0.00016712,2]
[339103459,1727247059226,-500.0,0.00016712,2]
[339103460,1727247059236,-500.0,0.00016712,2]
[339103461,1727247059246,-500.0,0.00016712,2]
[339103462,1727247059257,-500.0,0.00016712,2]
[339103463,1727247059267,-182.14714041,0.00016712,2]
[339103464,1727247059276,-500.0,0.00016712,2]
[339103465,1727247059286,-502.68361548,0.00016712,2]
[339103466,1727247059296,-500.0,0.00016712,2]
[339103467,1727247059517,-347.947554,0.00016712,2]
[339103468,1727247059528,-500.0,0.00016712,2]
[339103469,1727247059537,-347.947554,0.00016712,2]
[339103470,1727247059546,-554.69,0.00016712,2]
[339103471,1727247059557,-500.0,0.00016712,2]
[339103472,1727247059566,-500.0,0.00016712,2]
[339103473,1727247059576,-500.0,0.00016712,2]
[339103474,1727247059586,-347.947554,0.00016712,2]
[339103475,1727247059595,-1204.91,0.00016712,2]
[339103476,1727247059605,-347.947555,0.00016712,2]
[339103477,1727247059614,-500.0,0.00016712,2]
[339103478,1727247059623,-500.0,0.00016712,2]
[339103479,1727247059632,-500.0,0.00016712,2]
[339103480,1727247059642,-500.0,0.00016712,2]
[339103481,1727247059651,-500.0,0.00016712,2]
[339103482,1727247059660,-1273.31,0.00016712,2]
[339103483,1727247059669,-500.0,0.00016712,2]
[339103484,1727247059679,-500.0,0.00016712,2]
[339103485,1727247059689,-636.99925127,0.00016712,2]
[339103486,1727247059698,-500.0,0.00016712,2]
[339103487,1727247059707,-500.0,0.00016712,2]
[339103488,1727247059717,-500.0,0.00016712,2]
[339103489,1727247059726,-500.0,0.00016712,2]
[339103490,1727247059736,-500.0,0.00016712,2]
[339103491,1727247059745,-500.0,0.00016712,2]
[339103492,1727247059754,-563.66,0.00016712,2]
[339103493,1727247059763,-500.0,0.00016712,2]
[339103494,1727247059773,-500.0,0.00016712,2]
[339103495,1727247059783,-500.0,0.00016712,2]
[339103496,1727247059792,-500.0,0.00016712,2]
[339103497,1727247059801,-500.0,0.00016712,2]
[339103498,1727247059811,-500.0,0.00016712,2]
[339103499,1727247059821,-500.0,0.00016712,2]
[339103500,1727247059831,-500.0,0.00016712,2]
[339103501,1727247059840,-500.0,0.00016712,2]
[339103502,1727247059849,-500.0,0.00016712,2]
[339103503,1727247059859,-644.59,0.00016712,2]
[339103504,1727247059869,-1158.907245,0.00016712,2]
[339103505,1727247059878,-414.43675477,0.00016712,2]
[339103506,1727247059888,-606.0,0.00016712,2]
[339103507,1727247059898,-533.29018558,0.00016712,2]
[339103508,1727247059908,-541.92,0.00016712,2]
[339103509,1727247059920,-1158.907254,0.00016712,2]
[339103510,1727247059931,-500.0,0.00016712,2]
[339103511,1727247059942,-855.33,0.00016712,2]
[339103512,1727247059955,-500.0,0.00016712,2]
[339103513,1727247059965,-500.0,0.00016712,2]
[339103514,1727247059976,-500.0,0.00016712,2]
[339103515,1727247059985,-500.0,0.00016712,2]
[339103516,1727247059995,-775.81,0.00016712,2]